bitfinex/quotes_ETHUSD_20240612
["timestamp","ask_amount","ask_price","bid_price","bid_amount"]
[1718158331900,2.8657,3489.6,3489.0,7.252]
[1718158332422,2.8657,3489.6,3489.1,0.14197769]
[1718158336783,2.8657,3489.6,3488.7,7.252]
[1718158336971,2.8657,3489.6,3489.2,0.14198332]
[1718158337173,2.8657,3489.6,3488.8,0.55]
[1718158337408,2.8657,3489.6,3489.3,0.14195671]
[1718158337572,2.8657,3489.6,3488.8,0.55]
[1718158338080,2.8657,3489.6,3488.9,0.14206317]
[1718158339806,3.6309422,3489.6,3488.9,0.14206317]
[1718158340175,2.86591,3489.3,3488.9,0.14206317]
[1718158340578,2.86591,3489.3,3488.7,7.252]
[1718158340794,2.86591,3489.3,3489.0,0.14219472]
[1718158340974,2.86591,3489.3,3488.7,7.252]
[1718158341198,2.86591,3489.3,3489.1,0.1421681]
[1718158341519,2.86591,3489.3,3488.7,7.252]
[1718158341520,2.86591,3489.3,3489.2,0.14214149]
[1718158341926,2.86591,3489.3,3488.7,7.252]
[1718158342083,2.86591,3489.3,3489.2,0.14214149]
[1718158342282,2.86591,3489.3,3488.7,7.252]
[1718158342508,2.86591,3489.3,3488.8,0.14224796]
[1718158348697,2.86591,3489.3,3488.5,1.14635]
[1718158349015,0.838,3489.1,3488.6,0.6923012]
[1718158349518,0.838,3488.9,3488.6,0.1423012]
[1718158349703,2.3589,3489.2,3488.6,0.1423012]
[1718158349704,0.838,3488.7,3488.6,0.1423012]
[1718158350117,0.838,3488.7,3488.4,7.252]
[1718158350285,0.838,3488.5,3488.4,7.252]
[1718158350607,0.838,3488.5,3487.8,4.013666]
[1718158350802,0.838,3488.5,3487.9,1.42308911]
[1718158351010,0.838,3488.5,3488.0,0.55]
[1718158352892,2.86631,3488.8,3488.0,0.55]
[1718158354995,2.86631,3488.8,3487.9,0.55]
[1718158355958,2.86631,3488.8,3488.0,0.14245419]
[1718158356161,2.86631,3488.8,3488.1,0.55]
[1718158356664,2.86631,3488.8,3488.2,0.14240093]
[1718158356873,3.21219227,3488.8,3488.2,0.14240093]
[1718158360257,2.86631,3488.8,3488.2,0.14240093]
[1718158362760,3.45855266,3489.2,3488.3,0.05733462]
[1718158363101,1.94669369,3489.7,3488.3,0.05733462]
[1718158363102,3.45824266,3489.6,3488.4,3.61729137]
[1718158363276,2.86573,3489.6,3488.6,2.86646]
[1718158363464,2.86573,3489.6,3488.7,0.75057665]
[1718158363661,2.86573,3489.6,3488.8,0.05731854]
[1718158363994,2.86573,3489.6,3488.9,0.69320488]
[1718158365802,0.44842202,3489.7,3489.1,2.86606]
[1718158366010,0.44842202,3489.7,3489.2,1.20728229]
[1718158366176,2.86536,3490.0,3489.3,0.0573116]
[1718158366359,2.86536,3490.0,3489.4,0.55]
[1718158366714,2.86536,3490.0,3489.4,0.69259716]
[1718158367965,0.44841515,3490.1,3489.4,0.69259716]
[1718158368196,0.44841515,3490.1,3489.4,1.11419087]
[1718158372398,0.44841515,3490.1,3489.4,0.69259716]
[1718158374614,3.31368515,3490.1,3489.4,0.14259716]
[1718158374999,3.31368515,3490.1,3489.1,7.252]
[1718158375000,0.838,3489.7,3489.1,7.252]
[1718158375298,0.838,3489.7,3489.2,0.55]
[1718158375522,0.838,3489.7,3489.3,0.14195668]
[1718158375689,0.838,3489.7,3489.2,0.55]
[1718158375880,0.838,3489.5,3489.3,0.14195668]
[1718158376216,0.838,3489.5,3489.1,7.252]
[1718158376217,0.838,3489.4,3489.1,7.252]
[1718158377094,3.70382,3489.4,3489.1,7.252]
[1718158377505,3.70382,3489.4,3488.7,3.0]
[1718158377721,0.838,3489.1,3488.8,0.55]
[1718158377941,0.838,3489.1,3488.7,0.55]
[1718158378524,0.838,3489.1,3488.6,3.0]
[1718158378886,2.86582,3489.4,3488.6,3.0]
[1718158379119,3.4411622,3489.4,3488.6,3.0]
[1718158380520,2.2884,3489.7,3488.7,0.057328]
[1718158380706,3.45797266,3489.9,3488.9,5.313]
[1718158380707,2.86546,3489.9,3488.9,5.313]
[1718158381022,2.86546,3489.9,3489.1,2.86604]
[1718158381178,0.44841515,3490.1,3489.3,2.86585]
[1718158381382,2.86513,3490.3,3489.5,2.86569]
[1718158381585,2.86513,3490.3,3489.6,0.34729977]
[1718158381784,0.44837026,3490.4,3489.8,2.86543]
[1718158382037,0.44837026,3490.4,3489.9,0.60730188]
[1718158382234,0.59251266,3491.0,3490.0,2.86531]
[1718158382392,3.75312899,3491.2,3490.2,2.86516]
[1718158382393,2.86436,3491.2,3490.2,2.86516]
[1718158382593,2.86436,3491.2,3490.3,0.40453986]
[1718158382822,2.86436,3491.2,3490.3,0.95453986]
[1718158384195,0.44831246,3491.4,3490.3,0.95453986]
[1718158384388,0.44831246,3491.4,3490.3,3.95453986]
[1718158384721,0.44831246,3491.4,3490.4,2.86493]
[1718158384922,0.44831246,3491.4,3490.5,3.55]
[1718158386097,0.44831246,3491.4,3490.6,0.14156983]
[1718158386302,0.44831246,3491.4,3490.7,0.55]
[1718158386606,0.44831246,3491.4,3490.8,0.1402167]
[1718158387221,0.44831246,3491.4,3490.9,2.86458]
[1718158387556,0.44831246,3491.4,3491.0,0.69016353]
[1718158387931,0.44831246,3491.4,3491.0,0.14016353]
[1718158388243,0.72914371,3491.4,3490.5,10.252]
[1718158388454,0.72914371,3491.4,3491.1,0.14013694]
[1718158388677,0.72914371,3491.4,3490.6,0.55]
[1718158388828,0.72914371,3491.4,3491.2,0.14011035]
[1718158389013,0.72914371,3491.4,3490.6,0.55]
[1718158389216,0.56042137,3491.3,3490.6,0.55]
[1718158390460,0.56042137,3491.3,3490.5,10.252]
[1718158390636,2.86436,3491.2,3490.5,10.252]
[1718158392029,2.86436,3491.2,3490.5,3.0]
[1718158392243,2.86436,3491.2,3490.3,3.0]
[1718158392422,3.23492126,3491.2,3490.3,3.0]
[1718158392936,2.86458,3491.0,3490.3,3.0]
[1718158393138,2.86458,3491.0,3490.2,7.252]
[1718158394154,2.8648,3490.7,3490.2,7.252]
[1718158394934,2.86494,3490.5,3489.7,1.145942]
[1718158395113,0.531244,3490.4,3489.6,7.252]
[1718158396054,2.86461,3490.9,3489.7,2.92287263]
[1718158396263,2.86461,3490.9,3489.8,3.6073036]
[1718158396645,0.37056126,3491.2,3489.9,2.8654]
[1718158396855,2.86426,3491.3,3490.0,3.55]
[1718158398929,2.86459,3491.0,3490.0,3.55]
[1718158400867,2.86459,3491.0,3490.1,0.13601226]
[1718158401167,2.86459,3491.0,3490.2,0.55]
[1718158401561,3.352149,3491.0,3490.3,0.13595906]
[1718158403331,2.86482,3490.7,3490.3,0.13595906]
[1718158403558,2.86482,3490.7,3489.7,5.2799]
[1718158403765,2.2976,3490.9,3489.7,3.0]
[1718158403766,2.86506,3490.4,3489.7,3.0]
[1718158403949,0.286506,3490.3,3489.8,0.13615631]
[1718158404265,0.286506,3490.3,3489.3,5.4653]
[1718158404466,0.286506,3490.3,3489.9,0.13612963]
[1718158404632,0.286506,3490.3,3489.3,6.611381]
[1718158404834,0.286506,3490.3,3490.0,0.13610043]
[1718158405056,0.286506,3490.3,3489.3,6.611381]
[1718158405257,0.286506,3490.3,3490.1,0.13607383]
[1718158405579,2.86527,3490.1,3489.3,6.611381]
[1718158407731,2.86527,3490.1,3489.3,5.4653]
[1718158409833,2.86527,3490.1,3489.4,0.55]
[1718158410049,2.86527,3490.1,3489.4,3.0]
[1718158410270,2.86527,3490.1,3489.3,3.0]
[1718158410466,2.8655,3489.8,3489.3,3.0]
[1718158410976,2.8655,3489.8,3489.2,7.252]
[1718158413558,2.8658,3489.5,3489.2,7.252]
[1718158413901,2.8658,3489.5,3488.9,3.0]
[1718158414200,2.8658,3489.5,3488.7,3.0]
[1718158414404,2.8658,3489.5,3488.8,0.55]
[1718158415870,2.8658,3489.5,3488.9,0.13715065]
[1718158422107,5.81757,3489.5,3488.9,0.13566175]
[1718158423917,2.8658,3489.5,3488.9,0.13566175]
[1718158424081,2.86546,3489.9,3489.0,3.47342924]
[1718158424281,2.86514,3490.3,3489.2,2.86596]
[1718158424624,2.86514,3490.3,3489.3,3.74461781]
[1718158424913,2.86514,3490.3,3489.4,1.19710778]
[1718158425125,2.86514,3490.3,3489.5,0.55]
[1718158425406,2.86514,3490.3,3489.5,0.68725408]
[1718158426973,2.86514,3490.3,3489.5,3.61025601]
[1718158427176,2.8648,3490.7,3489.7,2.86554]
[1718158427400,3.1588459,3490.7,3489.8,0.68682946]
[1718158433385,2.86513,3490.3,3489.8,0.13682946]
[1718158433580,2.86502,3490.4,3489.6,10.252]
[1718158433782,2.3050459,3490.7,3489.6,10.252]
[1718158433977,0.82150486,3490.6,3489.7,0.13676842]
[1718158434822,2.86526,3490.1,3489.7,0.13676842]
[1718158435529,2.86497,3490.5,3489.7,0.13676842]
[1718158437617,2.86497,3490.5,3489.8,2.4251]
[1718158437998,2.86497,3490.5,3489.9,0.13636454]
[1718158438922,0.838,3490.3,3489.9,0.13636454]
[1718158439284,0.838,3490.3,3489.6,10.252]
[1718158439521,0.838,3490.3,3490.0,0.13633794]
[1718158439680,0.838,3490.3,3489.7,0.55]
[1718158440199,0.838,3490.3,3489.8,0.13639115]
[1718158440418,0.838,3490.3,3489.7,0.55]
[1718158440620,0.838,3490.3,3489.9,0.13636454]
[1718158440786,0.838,3490.3,3489.7,0.55]
[1718158441117,0.838,3490.3,3489.8,0.13639115]
[1718158441505,0.838,3490.3,3489.6,10.252]
[1718158441506,2.86518,3490.2,3489.6,10.252]
[1718158441722,0.838,3490.1,3489.9,0.13636454]
[1718158441926,0.838,3490.1,3489.6,3.0]
[1718158442132,3.70324,3490.1,3490.0,0.13633794]
[1718158442289,3.70324,3490.1,3489.5,3.0]
[1718158442624,2.86524,3490.1,3490.0,0.13633794]
[1718158442827,3.51045118,3490.1,3489.5,3.0]
[1718158442989,3.70324,3490.1,3490.0,0.13633794]
[1718158443188,3.70324,3490.1,3489.5,3.0]
[1718158443400,3.70324,3490.1,3489.6,0.13644436]
[1718158443727,3.70324,3490.1,3489.5,3.0]
[1718158444059,0.838,3489.9,3489.6,0.13644436]
[1718158444210,1.208324,3489.9,3489.2,3.0]
[1718158444522,0.838,3489.9,3489.3,0.68652419]
[1718158446738,2.86555,3489.8,3489.3,0.13652419]
[1718158446894,2.86567,3489.6,3489.3,0.13652419]
[1718158447092,0.838,3489.5,3489.2,3.0]
[1718158447308,0.838,3489.5,3489.4,0.13649758]
[1718158447521,0.838,3489.5,3489.2,3.0]
[1718158447703,0.838,3489.5,3489.4,0.13649758]
[1718158447920,0.838,3489.5,3488.8,4.146268]
[1718158448103,0.838,3489.5,3488.8,3.0]
[1718158448299,0.838,3489.5,3488.9,0.1366233]
[1718158448525,2.86583,3489.4,3488.9,0.1366233]
[1718158448905,2.86583,3489.4,3488.8,3.0]
[1718158449104,2.86583,3489.4,3489.0,0.13698241]
[1718158449315,2.86583,3489.4,3488.8,3.0]
[1718158449514,2.86583,3489.4,3489.1,0.1369558]
[1718158449713,2.83783,3489.4,3489.1,0.1369558]
[1718158449924,2.83783,3489.4,3488.8,3.0]
[1718158450125,3.28627585,3489.4,3489.2,0.13690425]
[1718158450331,3.28627585,3489.4,3488.8,5.6730893]
[1718158450555,3.28627585,3489.4,3489.3,0.13687764]
[1718158451244,3.28627585,3489.4,3488.8,3.0]
[1718158451543,3.28627585,3489.4,3489.3,0.13687764]
[1718158451721,3.28627585,3489.4,3488.8,3.0]
[1718158451925,3.28627585,3489.4,3489.3,0.13687764]
[1718158452122,3.28627585,3489.4,3488.9,3.0]
[1718158452432,3.28627585,3489.4,3488.8,3.0]
[1718158452625,3.28627585,3489.4,3489.0,0.13695486]
[1718158452830,3.28627585,3489.4,3488.8,3.0]
[1718158453011,3.28627585,3489.4,3489.1,0.13692824]
[1718158453215,3.28627585,3489.4,3488.9,1.7437363]
[1718158453529,3.28627585,3489.4,3489.0,0.13695486]
[1718158454297,0.44844585,3489.4,3489.0,0.13695486]
[1718158455332,5.15037,3489.8,3489.0,0.13695486]
[1718158455500,2.86557,3489.8,3489.0,4.34353628]
[1718158455707,3.31399859,3489.8,3489.0,4.34353628]
[1718158460593,0.44842859,3489.8,3489.1,0.05732046]
[1718158460839,0.44842859,3489.8,3489.2,0.68718625]
[1718158461062,0.44842859,3489.8,3489.2,0.74450013]
[1718158461214,0.44842859,3489.8,3489.3,0.57890816]
[1718158461728,0.44842859,3489.8,3489.4,0.13714039]
[1718158462109,0.44842859,3489.8,3489.4,3.00295039]
[1718158464838,0.44842859,3489.8,3489.4,0.13714039]
[1718158466110,0.44842859,3489.8,3489.2,0.55]
[1718158466349,0.44842859,3489.8,3489.5,0.13702611]
[1718158466558,0.44842859,3489.8,3489.2,0.55]
[1718158466764,0.44842859,3489.8,3489.6,0.1369995]
[1718158466913,0.44842859,3489.8,3489.2,0.55]
[1718158467106,0.44842859,3489.8,3489.7,0.13697289]
[1718158467622,0.44842859,3489.8,3489.2,0.55]
[1718158467933,0.44842859,3489.8,3489.3,0.13707933]
[1718158468111,0.44842859,3489.8,3489.2,0.55]
[1718158468315,0.44842859,3489.8,3489.4,0.13705272]
[1718158468521,0.44842859,3489.8,3489.2,0.55]
[1718158468738,0.44842859,3489.8,3489.5,0.13702611]
[1718158468948,0.44842859,3489.8,3489.2,0.55]
[1718158469230,0.44842859,3489.8,3489.1,0.55]
[1718158469432,0.44842859,3489.8,3489.2,0.13710595]
[1718158469717,0.44842859,3489.8,3489.3,0.55]
[1718158469937,0.44842859,3489.8,3489.3,0.68707933]
[1718158470214,2.86561,3489.7,3489.3,0.13707933]
[1718158470409,2.4093,3489.6,3488.7,4.146293]
[1718158470606,2.4093,3489.6,3488.8,0.68730008]
[1718158471052,2.4093,3489.6,3488.8,1.52530008]
[1718158471222,2.4093,3489.6,3488.9,1.80757831]
[1718158471423,2.4093,3489.6,3489.0,0.68724685]
[1718158472024,3.70361,3489.7,3489.0,0.68724685]
[1718158474819,0.838,3489.5,3489.0,0.68724685]
[1718158475656,0.838,3489.3,3489.0,0.13724685]
[1718158476001,0.838,3489.1,3488.8,3.0]
[1718158477269,2.86576,3489.5,3488.6,1.146322]
[1718158477270,0.838,3488.9,3488.6,1.146322]
[1718158477840,0.838,3488.7,3488.6,1.146322]
[1718158478038,5.17009,3489.2,3488.6,1.146322]
[1718158478039,0.838,3488.9,3488.6,1.146322]
[1718158478851,0.838,3488.9,3488.3,7.252]
[1718158479062,0.838,3488.9,3488.4,3.0]
[1718158480258,0.838,3488.9,3488.2,1.14647]
[1718158480584,0.838,3488.9,3488.3,1.918347]
[1718158480882,0.838,3488.7,3488.3,3.0]
[1718158481182,0.838,3488.7,3488.1,3.0]
[1718158482760,3.70425,3488.9,3488.1,3.0]
[1718158483282,0.838,3488.7,3488.1,3.0]
[1718158483584,0.838,3488.7,3488.1,4.5103506]
[1718158489667,2.86625,3488.9,3488.1,5.3483506]
[1718158490066,2.86625,3488.9,3488.1,3.838]
[1718158490476,2.86649,3488.6,3488.1,3.838]
[1718158490680,2.86649,3488.6,3488.1,3.0]
[1718158490879,2.86649,3488.6,3488.2,0.13318591]
[1718158501308,2.86621,3489.0,3488.4,0.838]
[1718158501467,2.8659,3489.3,3488.9,0.838]
[1718158501804,2.8659,3489.3,3488.5,3.07802383]
[1718158501805,2.8659,3489.3,3488.6,3.0]
[1718158501962,2.8659,3489.3,3489.0,0.9714263]
[1718158502167,2.8659,3489.3,3489.0,0.838]
[1718158502361,5.32864,3489.7,3489.2,0.838]
[1718158502635,2.86564,3489.7,3489.1,0.13339969]
[1718158502839,2.86564,3489.7,3488.8,3.0]
[1718158502994,2.86586,3489.4,3489.2,0.13321765]
[1718158503171,2.86586,3489.4,3488.7,0.55]
[1718158503369,2.86586,3489.4,3489.3,0.13319103]
[1718158503569,2.86586,3489.4,3488.6,3.0]
[1718158503766,2.86586,3489.4,3488.6,0.838]
[1718158504114,0.59251266,3489.7,3489.0,0.838]
[1718158504418,3.31397859,3489.8,3489.0,0.838]
[1718158504602,3.31397859,3489.8,3489.4,0.838]
[1718158505116,3.31397859,3489.8,3489.5,0.13299199]
[1718158505772,3.31397859,3489.8,3489.0,2.86611]
[1718158505914,3.31397859,3489.8,3489.6,0.13295955]
[1718158506227,3.96552645,3489.8,3489.1,1.388]
[1718158506427,3.31397859,3489.8,3489.7,0.13293294]
[1718158506579,3.31397859,3489.8,3489.1,1.388]
[1718158506780,3.31397859,3489.8,3489.7,0.13293294]
[1718158507029,3.31397859,3489.8,3489.1,1.388]
[1718158507190,3.31397859,3489.8,3489.7,0.13293294]
[1718158507406,0.44842859,3489.8,3489.3,0.838]
[1718158507735,0.44842859,3489.8,3489.3,1.988611]
[1718158508050,0.44842859,3489.8,3489.4,0.13301277]
[1718158508380,0.44842859,3489.8,3489.4,2.99883277]
[1718158508706,5.76575266,3490.6,3489.7,0.838]
[1718158508902,3.45735266,3490.6,3490.1,0.838]
[1718158509115,0.44836005,3490.7,3490.1,0.838]
[1718158509320,0.44836005,3490.7,3490.2,0.13252646]
[1718158509917,1.01048905,3490.7,3490.2,0.13252646]
[1718158510222,1.01048905,3490.7,3489.8,3.0]
[1718158510387,1.84848905,3490.7,3490.3,0.13217921]
[1718158510588,1.01048905,3490.7,3490.1,0.838]
[1718158510782,0.44836005,3490.7,3490.4,0.13215261]
[1718158511015,0.44836005,3490.7,3490.1,0.838]
[1718158511220,0.44836005,3490.7,3490.5,0.1320619]
[1718158511528,0.44836005,3490.7,3490.6,0.13203531]
[1718158511689,0.44836005,3490.7,3490.1,0.838]
[1718158512042,0.44836005,3490.7,3490.2,0.13112695]
[1718158513101,0.44836005,3490.7,3490.5,0.838]
[1718158513351,0.44836005,3490.7,3490.6,0.1310312]
[1718158513650,0.44836005,3490.7,3490.5,0.838]
[1718158513854,0.44836005,3490.7,3490.6,0.1310312]
[1718158514255,0.44836005,3490.7,3490.2,3.838]
[1718158514418,0.44836005,3490.7,3490.6,0.1310312]
[1718158514617,0.44836005,3490.7,3490.2,4.803817]
[1718158514618,0.44836005,3490.7,3490.2,3.838]
[1718158514818,0.44836005,3490.7,3490.6,0.1310312]
[1718158515064,0.44836005,3490.7,3490.2,3.838]
[1718158515215,0.44836005,3490.7,3490.6,0.1310312]
[1718158515420,0.44836005,3490.7,3490.2,3.838]
[1718158515747,0.44836005,3490.7,3490.3,0.910817]
[1718158515918,0.44836005,3490.7,3490.4,0.13108438]
[1718158521893,0.44836005,3490.7,3490.5,0.13093539]
[1718158522053,0.44836005,3490.7,3490.1,3.0]
[1718158522250,0.44836005,3490.7,3490.2,0.13101518]
[1718158522479,0.44836005,3490.7,3490.2,1.5946437]
[1718158523083,0.44836005,3490.7,3490.2,2.4326437]
[1718158524270,0.44836005,3490.7,3490.2,1.5946437]
[1718158530563,0.44836005,3490.7,3490.3,0.838]
[1718158530766,0.44836005,3490.7,3490.4,0.1307909]
[1718158531104,2.66685505,3491.0,3490.4,0.67403284]
[1718158531256,2.4763,3491.2,3490.7,0.838]
[1718158531463,0.44828522,3491.1,3490.7,0.838]
[1718158531683,0.44828522,3491.1,3490.8,0.17261335]
[1718158531899,0.44828522,3491.1,3490.7,0.838]
[1718158532113,0.44828522,3491.1,3490.7,1.26262219]
[1718158532272,0.59251266,3492.2,3490.7,1.26262219]
[1718158532273,5.30211,3491.8,3490.9,3.70259]
[1718158532473,2.88642614,3491.8,3491.3,0.838]
[1718158532807,2.4382,3491.8,3491.4,0.17222262]
[1718158534073,2.4382,3491.8,3491.5,0.17158302]
[1718158534286,2.76582,3491.8,3491.1,2.86437]
[1718158534485,2.4382,3491.8,3491.2,0.17166635]
[1718158536096,2.86396,3491.7,3491.2,0.17166635]
[1718158536327,2.86396,3491.7,3490.9,0.838]
[1718158536529,2.86396,3491.7,3491.0,0.17156461]
[1718158540615,3.70211,3491.5,3491.0,0.17156461]
[1718158540827,0.838,3491.1,3491.0,0.17156461]
[1718158541011,3.3062,3491.1,3490.3,7.252]
[1718158541208,3.3062,3491.1,3491.0,0.17166947]
[1718158541422,3.3062,3491.1,3490.3,7.252]
[1718158541621,3.3062,3491.1,3491.0,0.17175177]
[1718158541834,3.3062,3491.1,3490.3,7.252]
[1718158541835,2.4682,3491.1,3490.3,7.252]
[1718158542132,2.4682,3491.1,3490.4,0.838]
[1718158542346,2.4682,3491.1,3490.5,0.17186988]
[1718158545768,2.3345,3491.6,3491.0,0.838]
[1718158546069,2.3345,3491.6,3491.1,0.17220688]
[1718158548169,2.3345,3491.6,3491.2,0.17201011]
[1718158548357,2.99739627,3491.6,3490.8,0.55]
[1718158548558,2.3345,3491.6,3491.3,0.17197068]
[1718158548769,2.3345,3491.6,3490.8,1.388]
[1718158548966,2.3345,3491.6,3491.4,0.17194291]
[1718158549174,2.3345,3491.6,3490.8,1.388]
[1718158549380,2.3345,3491.6,3490.9,0.17208179]
[1718158549529,2.3345,3491.6,3490.9,0.61456097]
[1718158549868,2.3345,3491.6,3491.0,0.838]
[1718158550242,2.3345,3491.6,3491.1,0.17202623]
[1718158550467,2.85061266,3492.0,3491.2,0.838]
[1718158550854,2.85061266,3492.0,3491.3,0.17191824]
[1718158551858,0.838,3491.9,3491.0,3.70243]
[1718158552201,0.838,3491.9,3491.1,0.7219738]
[1718158552975,5.30823,3491.6,3491.1,0.1719738]
[1718158553173,5.30823,3491.6,3490.7,3.838]
[1718158553393,5.30823,3491.6,3491.2,0.17194602]
[1718158553701,5.30823,3491.6,3490.7,3.838]
[1718158553863,5.30823,3491.6,3491.3,0.17191824]
[1718158554268,5.30823,3491.6,3490.8,0.917098]
[1718158554465,5.30823,3491.6,3491.4,0.17189047]
[1718158554679,5.30823,3491.6,3490.9,0.838]
[1718158555200,5.30823,3491.6,3491.0,0.17200158]
[1718158555402,0.59251266,3491.8,3491.2,0.838]
[1718158555900,5.30792,3492.0,3491.3,0.17191824]
[1718158556125,2.86372,3492.0,3491.4,0.838]
[1718158556527,3.03671266,3492.3,3491.8,0.838]
[1718158557027,0.59251266,3492.4,3491.9,3.58542859]
[1718158557183,0.59251266,3492.4,3492.0,0.35854286]
[1718158557389,0.59251266,3492.6,3492.1,2.86359]
[1718158557589,0.01,3492.9,3492.1,3.03470702]
[1718158559483,0.01,3492.9,3492.2,3.0]
[1718158559727,0.01,3492.9,3492.3,2.62943258]
[1718158559925,0.01,3492.9,3492.4,3.84930226]
[1718158560430,0.01,3492.9,3492.4,4.01990708]
[1718158561020,5.31798,3492.9,3492.4,3.17060482]
[1718158561228,5.31798,3492.9,3492.4,0.17060482]
[1718158561612,5.31798,3492.9,3491.9,3.0]
[1718158561798,5.31798,3492.9,3492.5,0.1704548]
[1718158562000,5.31798,3492.9,3491.9,3.0]
[1718158562327,5.99790617,3492.9,3492.6,0.17042704]
[1718158562704,5.99790617,3492.9,3491.9,3.0]
[1718158562917,6.59041883,3492.9,3491.9,3.0]
[1718158563135,6.59041883,3492.9,3492.0,0.1705936]
[1718158563295,2.86322,3492.6,3492.0,0.1705936]
[1718158564125,2.86322,3492.6,3491.8,7.252]
[1718158564452,2.86322,3492.6,3492.1,0.17078709]
[1718158564650,3.52228588,3492.6,3491.8,7.252]
[1718158564796,3.52228588,3492.6,3492.2,0.17075933]
[1718158564997,3.52228588,3492.6,3491.8,7.252]
[1718158565224,2.86322,3492.6,3491.8,7.252]
[1718158565529,2.86322,3492.6,3491.9,0.17084262]
[1718158565827,2.86322,3492.6,3492.0,2.4982]
[1718158566218,2.86322,3492.6,3492.1,0.17078709]
[1718158567824,2.86322,3492.6,3491.8,7.252]
[1718158568242,2.86322,3492.6,3491.9,0.17084262]
[1718158569227,2.86322,3492.6,3492.0,2.3915]
[1718158569665,2.86322,3492.6,3492.1,0.17030953]
[1718158569824,2.455,3492.9,3492.1,0.17030953]
[1718158570031,0.01,3492.9,3492.2,2.86349]
[1718158570268,0.01,3492.9,3492.3,0.60552068]
[1718158570476,0.01,3492.9,3492.3,0.77603347]
[1718158570761,0.01,3492.9,3492.4,2.86335]
[1718158570968,0.01,3492.9,3492.4,3.03383502]
[1718158571270,0.01,3492.9,3492.6,2.86318]
[1718158571568,0.01,3492.9,3492.8,2.86303]
[1718158571923,0.01,3492.9,3492.8,3.03320999]
[1718158572125,0.01,3492.9,3492.8,6.58320999]
[1718158572326,0.01,3492.9,3492.8,8.59120999]
[1718158573268,0.01,3492.9,3492.8,6.58320999]
[1718158573445,0.01,3492.9,3492.8,7.50673027]
[1718158573898,0.01,3492.9,3492.8,9.93213027]
[1718158577704,0.01,3492.9,3492.8,9.38213027]
[1718158578673,0.01,3492.9,3492.8,6.95673027]
[1718158580105,0.01,3492.9,3492.8,1.09370027]
[1718158580310,0.01,3492.9,3492.8,0.17017999]
[1718158580789,0.01,3492.9,3492.4,2.86334]
[1718158580992,0.01,3492.9,3492.8,0.16881277]
[1718158581672,0.01,3492.9,3492.5,3.0]
[1718158581829,0.01,3492.9,3492.2,7.252]
[1718158582025,0.01,3492.9,3492.2,8.263564]
[1718158582626,0.01,3492.9,3492.3,3.0]
[1718158582827,0.01,3492.9,3492.2,1.011564]
[1718158583027,0.01,3492.9,3492.3,0.05726575]
[1718158583366,0.01,3492.9,3492.3,2.8634]
[1718158583564,0.01,3492.9,3492.4,4.2374964]
[1718158584736,0.01,3492.9,3492.5,0.0572577]
[1718158584949,0.01,3492.9,3492.6,0.55]
[1718158586468,0.01,3492.9,3492.5,3.41326]
[1718158586775,0.01,3492.9,3492.6,3.05725769]
[1718158586989,0.01,3492.9,3492.7,1.26580141]
[1718158588173,0.01,3492.9,3492.8,2.92028585]
[1718158588476,0.01,3492.9,3492.8,6.47028585]
[1718158590066,0.01,3492.9,3492.8,6.41303]
[1718158591545,2.3311,3492.9,3492.4,2.86331]
[1718158591770,2.3311,3492.9,3491.5,2.4554]
[1718158591771,2.86303,3492.8,3491.6,4.009323]
[1718158591979,2.3311,3492.9,3492.0,0.7252]
[1718158592144,0.01,3492.9,3492.0,0.78246886]
[1718158592350,0.01,3492.9,3492.1,2.86353]
[1718158592552,0.01,3492.9,3492.0,0.78246886]
[1718158592553,0.01,3492.9,3492.3,2.86341]
[1718158592886,0.01,3492.9,3492.4,0.05725961]
[1718158593090,0.01,3492.9,3492.4,3.29206696]
[1718158594142,0.01,3492.9,3492.4,0.29206696]
[1718158594340,0.01,3492.9,3492.0,3.7252]
[1718158594603,2.3581,3492.8,3492.0,3.7252]
[1718158595100,5.22115,3492.8,3492.0,3.7252]
[1718158595240,5.22115,3492.8,3492.1,0.60726586]
[1718158595437,0.01,3492.9,3492.1,0.60726586]
[1718158595687,0.01,3492.9,3492.2,4.30828059]
[1718158595990,0.01,3492.9,3492.3,0.55]
[1718158596183,0.01,3492.9,3492.3,0.71964373]
[1718158597556,0.01,3492.9,3492.4,0.0572599]
[1718158597755,0.01,3492.9,3492.5,0.16950663]
[1718158598170,2.86304,3492.8,3492.5,0.16950663]
[1718158598540,2.86304,3492.8,3492.2,1.44482059]
[1718158598943,2.86304,3492.8,3492.3,0.51700206]
[1718158599195,2.86304,3492.8,3492.3,0.68656422]
[1718158601504,2.86304,3492.8,3492.3,0.16956216]
[1718158601910,2.86304,3492.8,3492.0,3.0]
[1718158602130,2.86304,3492.8,3492.4,0.16996513]
[1718158602312,2.86304,3492.8,3492.1,0.55]
[1718158602616,2.86304,3492.8,3492.5,0.16993737]
[1718158602819,2.86304,3492.8,3492.2,0.17002066]
[1718158603040,2.86304,3492.8,3492.6,0.16990961]
[1718158603176,2.86304,3492.8,3492.2,1.09720207]
[1718158603376,2.86304,3492.8,3492.7,0.17002739]
[1718158604794,2.86304,3492.8,3492.7,0.17003609]
[1718158605178,2.86304,3492.8,3492.1,0.55]
[1718158605380,5.28244,3492.8,3492.7,0.17003609]
[1718158605580,5.811684,3492.8,3491.6,1.145353]
[1718158605772,5.811684,3492.8,3492.7,0.16999393]
[1718158605974,5.811684,3492.8,3491.6,1.145353]
[1718158606376,5.811684,3492.8,3492.7,0.17013785]
[1718158606571,5.811684,3492.8,3491.6,1.145353]
[1718158607081,5.811684,3492.8,3492.0,0.17033222]